Cogmind - Beta 16 @@@ ROGUE MODE // 2025.12.13 @ 21:04:45 Player: 7604 Result: Destroyed by YI-LHS(R) with Subdweller Laser Performance ------------- Evolutions (0) 0 Regions Visited (3) 600 Robots Destroyed (37) 185 Value Destroyed (784) 784 Prototype IDs (4) 80 Alien Tech Used (0) 0 Bonus (74) 74 TOTAL SCORE: 1723 Bonus ------- Follower Combat Kills 74 Cogmind --------- Core Integrity 0/250 Matter 176/300 Energy 100/100 System Corruption 0% Temperature Cool (6) Movement Rolling (175) Ox5 Location -10/Subcaves Parts ------- > --- POWER (1) -------- (None) > --- PROPULSION (2) --- Compact Wheel > --- UTILITY (2) ------ Huge Storage Unit Improved Terrain Scanner > --- WEAPON (2) ------- Subdweller Machine Gun Light Cannon > --- INVENTORY (25) --- Subdweller Power Source Light Nuclear Core Subdweller Monowheel Improved Heat Sink Huge Storage Unit Seismic Detector Scrap Shield Makeshift System Restoration Module Subdweller Laser Beamcaster Beam Cannon Beam Cannon Beam Cannon Assault Rifle Assault Rifle Grenade Launcher Subdweller Shrapnel Launcher Datajack Flamer Makeshift Sword Peak State ------------ > --- POWER ------------ Ion Engine > --- PROPULSION ------- Wheel Subdweller Monowheel > --- UTILITY ---------- Huge Storage Unit Improved Terrain Scanner > --- WEAPON ----------- Subdweller Machine Gun Makeshift Sword > --- INVENTORY -------- Subdweller Power Source Light Nuclear Core Compact Wheel Heat Sink Heat Sink Improved Heat Sink Huge Storage Unit Seismic Detector Seismic Detector Makeshift System Restoration Module Subdweller Laser Beamcaster Beam Cannon Beam Cannon Beam Cannon Beam Cannon Assault Rifle Assault Rifle Assault Rifle Subdweller Machine Gun Light Cannon Grenade Launcher Subdweller Shrapnel Launcher Datajack Flamer [Rating: 18] Favorites ----------- Power Ion Engine Engine Ion Engine Power Core Light Nuclear Core Propulsion Wheel Treads Light Treads Wheel Wheel Utility Seismic Detector Device Seismic Detector Storage Huge Storage Unit Weapon Assault Rifle Energy Gun Small Laser Ballistic Gun Assault Rifle Ballistic Cannon Light Cannon Slashing Weapon Makeshift Sword Build | -11 -10 -10 -10 ------- Run | Yrd Mat Min Sub Slots Evolved . | . . . . Power . | . . . . Propulsion . | . . . . Utility . | . . . . Weapon . | . . . . Parts Attached 22 | 7 9 . 6 Power 3 | 1 2 . . Engine 2 | 1 1 . . Core 1 | . 1 . . Reactor . | . . . . Propulsion 6 | 2 2 . 2 Treads 2 | 2 . . . Leg . | . . . . Wheel 4 | . 2 . 2 Hover . | . . . . Flight . | . . . . Utility 5 | 2 3 . . Device 3 | 1 2 . . Storage 2 | 1 1 . . Processor . | . . . . Hackware . | . . . . Protection . | . . . . Artifact . | . . . . Weapon 8 | 2 2 . 4 Energy Gun 1 | 1 . . . Energy Cannon . | . . . . Ballistic Gun 5 | 1 2 . 2 Ballistic Cannon 1 | . . . 1 Launcher . | . . . . Special Weapon . | . . . . Impact Weapon . | . . . . Slashing Weapon 1 | . . . 1 Piercing Weapon . | . . . . Special Melee Weapon . | . . . . Unidentified Prototypes . | . . . . Parts Lost 9 | . 4 . 5 Power 2 | . 1 . 1 Propulsion 5 | . 2 . 3 Utility 1 | . . . 1 Weapon 1 | . 1 . . Highest Loss Streak 2 | . 2 . 2 To Critical Strikes . | . . . . Average Backups 12 | 2 8 15 22 Power . | . . . 1 Propulsion . | . . 1 1 Utility 3 | . 2 5 6 Weapon 7 | . 4 7 12 Tool/Special . | . . . . Unused Backups 21 | . 1 . 20 Power 2 | . . . 2 Propulsion 1 | . . . 1 Utility 6 | . . . 6 Weapon 11 | . 1 . 10 Tool/Special 1 | . . . 1 Average Slot Usage (%) 98 | . 97 100 98 Engine 12 | . 10 14 14 Core 1 | . 3 . . Treads 7 | . 14 . . Wheel 19 | . 11 28 27 Device 13 | . 14 14 13 Storage 14 | . 14 14 14 Ballistic Gun 25 | . 27 28 19 Slashing Weapon 2 | . . . 8 Peak Build Rating 18 | 7 11 10 18 Average Rating 9 | 6 8 8 14 On Entrance 6 | . 7 8 10 Avg Prop Armor Cover (%) . | . . . . Naked Turns . | . . . . Heaviest Build 94 | 14 90 90 94 Greatest Support 40 | 40 40 20 36 Greatest Overweight (x) 8 | . 4 4 8 Average Overweight (x) 2 | . 1 4 2 Largest Inventory Capacity 25 | 8 25 25 25 Average Capacity 18 | 7 13 25 25 Most Carried 25 | 4 13 18 25 Average Carried 13 | 2 8 15 23 Final Capacity 25 | 8 25 25 25 Final Carried 21 | 4 13 18 21 Class Distribution -------------------- 87% | Mutant 12% | Scavenger-Mutant Dominant Class ---------------- Mutant | -10/Materials Mutant | -10/Mines Mutant | -10/Subcaves Resources | -11 -10 -10 -10 ----------- Run | Yrd Mat Min Sub Matter Collected 1037 | 297 546 48 146 Remotely . | . . . . Salvage Created 1176 | 78 821 96 181 Parts 77 | 10 43 9 15 Haulers Intercepted 1 | . 1 . . Recyclers Shooed 1 | . 1 . . Parts Field Recycled . | . . . . Retrieved Matter . | . . . . Parts Self-Destructed . | . . . . Prevented . | . . . . Parts Restored . | . . . . Kills | -11 -10 -10 -10 ------- Run | Yrd Mat Min Sub Combat Hostiles Destroyed 26 | . 16 5 5 Guns 25 | . 16 5 4 Cannons 1 | . . . 1 Classes Destroyed 7 | 1 5 . 1 Tunneler 5 | 3 2 . . Hauler 1 | . 1 . . Recycler 2 | . 2 . . Watcher 3 | . 3 . . Swarmer 10 | . 6 4 . Grunt 11 | . 10 1 . Subdweller 5 | . . . 5 Best Kill Streak 8 | 1 8 3 1 Combat Bots Only 7 | . 7 3 1 Max Kills in Single Turn 2 | 1 2 2 1 Gunslinging 1 | . . 1 . Exploded . | . . . . Melee . | . . . . Uniques/NPCs Destroyed . | . . . . Combat | -11 -10 -10 -10 -------- Run | Yrd Mat Min Sub Hostile Shots Fired 120 | . 68 14 38 Missed 39 | . 21 4 14 Hits 81 | . 47 10 24 Projectile 81 | . 47 10 24 Critical Strikes 1 | . 1 . . Damage Taken 1087 | . 500 105 482 Core 268 | . 105 28 135 Absorbed by Shields . | . . . . Core Remaining (%) 100 | 100 . . . Volleys Fired 103 | 9 61 8 25 Largest 2 | 2 2 2 2 Hottest 60 | 60 40 40 60 Shots Fired 204 | 18 122 16 48 Gun 199 | 18 122 16 43 Cannon 5 | . . . 5 Launcher . | . . . . Special . | . . . . Kinetic 195 | 9 122 16 48 Thermal 9 | 9 . . . Explosive . | . . . . Electromagnetic . | . . . . Robot Hit Streak 9 | 4 9 4 8 Robot Miss Streak 3 | 2 3 2 2 Penetration Max . | . . . . Secondary Targets 4 | . 3 1 . Max Gunslinging Chain 1 | . 1 1 . Shots Hit Robots 129 | 11 72 10 36 Core Hits 48 | 3 32 6 7 Critical Kills 1 | . . . 1 Critical Parts Destroyed 1 | . 1 . . Critical Strikes 3 | . 1 . 2 Destroy 3 | . 1 . 2 Melee Attacks 21 | . . . 21 Impact . | . . . . Slashing 21 | . . . 21 Piercing . | . . . . Sneak Attacks . | . . . . Combat Hostiles . | . . . . Follow-up Attacks . | . . . . Damage Inflicted 1851 | 130 966 134 621 Guns 1776 | 130 960 134 552 Cannons 69 | . . . 69 Explosions . | . . . . Melee . | . . . . Ramming 6 | . 6 . . Kinetic 1778 | 63 960 134 621 Thermal 67 | 67 . . . Explosive . | . . . . Electromagnetic . | . . . . Impact . | . . . . Slashing . | . . . . Piercing . | . . . . Highest Corruption . | . . . . Average Corruption . | . . . . Corruption Purged . | . . . . Corruption Blocked . | . . . . Overload Shots . | . . . . Overflow Damage . | . . . . Projectiles . | . . . . Explosions . | . . . . Melee . | . . . . Knockbacks . | . . . . Impact . | . . . . Kinetic . | . . . . Secondary . | . . . . Self-Inflicted Damage . | . . . . Shots . | . . . . Rammed . | . . . . Targets Rammed 1 | . 1 . . Kicked . | . . . . Crushed 1 | . 1 . . Highest Temperature 20 | . 20 . . Average Temperature 4 | . 4 . . Received Heat Transfer 372 | . 243 39 90 Siege Activations . | . . . . Martial Activations . | . . . . Shielding Activations . | . . . . Robots Disrupted . | . . . . Combat Hostiles . | . . . . Robots Corrupted . | . . . . Combat Hostiles . | . . . . Parts Fried . | . . . . Impact Corruptions . | . . . . Robots Melted . | . . . . Combat Hostiles . | . . . . Parts Melted 1 | . . . 1 Heat Transferred 150 | 150 . . . Parts Sabotaged . | . . . . Parts Stolen . | . . . . Parts Stripped . | . . . . Power Chain Reactions . | . . . . Alert | -11 -10 -10 -10 ------- Run | Yrd Mat Min Sub Maximum Alert Level 1 | . 1 . . Low Security (%) 99 | 100 99 100 . Level 1 . | . . . . Level 2 . | . . . . Level 3 . | . . . . Level 4 . | . . . . Level 5 . | . . . . High Security . | . . . . Max Security . | . . . . Peak Influence 205 | 5 205 87 . Initial 28 | . . 28 . Average 77 | . 107 35 . Influence Increases 826 | 15 567 244 . Destroy 0b10 Robot/C 500 | . 320 180 . Destroy 0b10 Robot/NC 55 | 15 40 . . Destroy Leader 98 | . 68 30 . Allied During Kill 19 | . . 19 . Successful Hack 18 | . 18 . . Select Force Hacks 30 | . 30 . . Destroy Structure 1 | . 1 . . Lose Combat Pursuer 105 | . 90 15 . Influence Decreases 826 | 15 492 273 46 Entered New Map 72 | . . 47 25 Time Decay 673 | 15 452 186 20 Lost Part 41 | . 40 . 1 Lost Ally 40 | . . 40 . Squads Dispatched 3 | . 3 . . Investigation 2 | . 2 . . Extermination . | . . . . Reinforcement 1 | . 1 . . Assault . | . . . . Garrison . | . . . . Intercept . | . . . . Searches Triggered . | . . . . Construction Impeded . | . . . . Haulers Reinforced . | . . . . Active Scanning Responses . | . . . . Cargo Convoy Interrupts . | . . . . Stealth | -11 -10 -10 -10 --------- Run | Yrd Mat Min Sub Distress Signals 4 | . 4 . . Communications Jammed . | . . . . Distress Signals . | . . . . Times Spotted 42 | . 27 9 6 Peak Tracking Total 6 | . 6 3 2 Tactical Retreats 6 | . 4 1 1 Traps | -11 -10 -10 -10 ------- Run | Yrd Mat Min Sub Traps Triggered 5 | . 5 . . Indirectly . | . . . . Trap Hack Attempts . | . . . . Triggered . | . . . . Disarmed . | . . . . Reprogrammed . | . . . . Reused . | . . . . Traps Extracted . | . . . . Installed . | . . . . Triggered . | . . . . Machines | -11 -10 -10 -10 ---------- Run | Yrd Mat Min Sub Machines Disabled . | . . . . Max in Single Turn . | . . . . Machines Repaired . | . . . . Machines Dismantled . | . . . . Machines Sabotaged . | . . . . Overloaded Fab Kills . | . . . . Hacking | -11 -10 -10 -10 --------- Run | Yrd Mat Min Sub Machines Accessed 10 | . 9 . 1 Terminals 7 | . 7 . . Fabricators . | . . . . Repair Stations . | . . . . Recycling Units 2 | . 2 . . Scanalyzers . | . . . . Garrison Access . | . . . . Total Hacks 30 | . 26 . 4 Successful 19 | . 15 . 4 Failed 10 | . 10 . . Catastrophic 2 | . 2 . . Database Lockouts 1 | . 1 . . Manual 20 | . 20 . . Terminals 20 | . 20 . . Fabricators . | . . . . Repair Stations . | . . . . Recycling Units 6 | . 6 . . Scanalyzers . | . . . . Garrison Access . | . . . . Terminal Hacks 9 | . 5 . 4 Record 4 | . . . 4 Robot Analysis 2 | . 2 . . Prototype ID Bank 2 | . 2 . . Locate Traps 1 | . 1 . . Fabricator Hacks . | . . . . Repair Station Hacks . | . . . . Recycling Unit Hacks 2 | . 2 . . Retrieve Components 2 | . 2 . . Scanalyzer . | . . . . Garrison Access Hacks . | . . . . Unauthorized Hacks 8 | . 8 . . Terminals 7 | . 7 . . Botnet 1 | . 1 . . Operators 1 | . 1 . . Skim 5 | . 5 . . Fabricators . | . . . . Repair Stations . | . . . . Recycling Units 1 | . 1 . . Tunnel 1 | . 1 . . Scanalyzers . | . . . . Garrison Access . | . . . . Data Cores Recovered . | . . . . Used . | . . . . Hacking Detections 9 | . 9 . . Full Trace Events 1 | . 1 . . Feedback Events . | . . . . Feedback Blocked . | . . . . Robot Schematics Acquired . | . . . . Robots Built . | . . . . Authchips . | . . . . Time . | . . . . Total Robot Build Rating . | . . . . Part Schematics Acquired . | . . . . Parts Built . | . . . . Authchips . | . . . . Time . | . . . . Total Part Build Rating . | . . . . Part Studies Acquired . | . . . . Parts Repaired . | . . . . Time . | . . . . Parts Recycled . | . . . . Recycled Matter . | . . . . Retrieved Matter . | . . . . Retrieved Components . | . . . . Parts Scanalyzed . | . . . . Part Schematics Acquired . | . . . . Parts Damaged . | . . . . Bothacking | -11 -10 -10 -10 ------------ Run | Yrd Mat Min Sub Used RIF Installer . | . . . . Robots Hacked . | . . . . Non-combat . | . . . . Combat . | . . . . Robot Hacks Applied . | . . . . Relay Couplers Released . | . . . . Fabnet Peak Effective % . | . . . . Robots Rewired . | . . . . Allies Hacked . | . . . . Hacks Repelled . | . . . . Allies | -11 -10 -10 -10 -------- Run | Yrd Mat Min Sub Total Allies 2 | . . 2 . Largest Group 2 | . . 2 . Highest-Rated Group 38 | . . 38 . Highest-Rated Ally 31 | . . 31 . Total Orders . | . . . . Ally Attacks 19 | . . 19 . Total Damage 249 | . . 249 . Kills 4 | . . 4 . Allies Corrupted . | . . . . Allies Melted . | . . . . Intel | -11 -10 -10 -10 ------- Run | Yrd Mat Min Sub Active Infowar (turns) 2995 | 133 1458 615 789 Terrain 140 | . 111 . 29 Seismic 2855 | 133 1347 615 760 Robot Analysis Total 2 | . 2 . . Derelict Logs Recovered 2 | . . 2 . Drone Launches . | . . . . Drone Recoveries . | . . . . Exploration | -11 -10 -10 -10 ------------- Run | Yrd Mat Min Sub Turns Passed 3116 | 227 1458 615 816 Spaces Moved 1749 | 119 801 383 446 Core 22 | 7 15 . . Treads 492 | 112 380 . . Legs . | . . . . Wheels 1235 | . 406 383 446 Hover . | . . . . Flight . | . . . . Fastest Speed 50 | 50 80 140 119 Average Speed 139 | 153 144 140 127 Slowest Speed 250 | 160 250 140 200 Overloaded Moves . | . . . . Propulsion Burnouts . | . . . . Robots Hopped . | . . . . Potential Cave-ins . | . . . . Cave-ins Triggered . | . . . . Exploration Rate (%) 53 | 9 98 76 29 Regions Visited 3 Branch Regions 2 Pre-discovered Areas 3 | . 2 1 . Known Exits Taken 1 | . . 1 . Unknown Exits Taken 2 | 1 1 . . Scrap Searched 4 | . . 2 2 Spaces Dug . | . . . . Terrain Destroyed . | . . . . Melee . | . . . . Projectile . | . . . . AOE . | . . . . Terrain Rammed . | . . . . Walls Destroyed . | . . . . Machines Disabled . | . . . . Actions | -11 -10 -10 -10 --------- Run | Yrd Mat Min Sub Total 2182 | 142 975 446 619 Wait 227 | 4 76 51 96 Move 1746 | 118 800 382 446 Hop . | . . . . Pick Up 31 | 4 13 5 9 Fast Attach 17 | 7 9 . 1 Attach 4 | . 2 . 2 Detach . | . . . . Swap 23 | . 9 . 14 Drop 9 | . 4 . 5 Fire 103 | 9 61 8 25 Melee 21 | . . . 21 Ram . | . . . . Kick . | . . . . Crush 1 | . 1 . . Escape Stasis . | . . . . Rewire . | . . . . Trap . | . . . . Miscellaneous . | . . . . Route ------- -11/Scrapyard -10/Materials (discovered 5 exits: *Mat x3 / [*Min] / Sub) -10/Mines (discovered 3 exits: *Mat x2 / *Sub) -10/Subcaves (discovered 3 exits: *Mat x2 / Rec) History --------- Turn | Location | Event 2 | -11/Scrapyard | Met Revision 17 10 | -11/Scrapyard | Discovered new exit (range 15) 228 | -11/Scrapyard | Entered Materials 307 | -10/Materials | Build established: Mutant 477 | -10/Materials | Discovered new exit (range 16) 533 | -10/Materials | Discovered new exit (range 12) 642 | -10/Materials | Destroyed 7 combat bots 796 | -10/Materials | Discovered new exit (range 7) 1139 | -10/Materials | Discovered new exit (range 12) 1256 | -10/Materials | Central database locked down 1409 | -10/Materials | Identified exit to Subcaves 1503 | -10/Materials | Learned 2 Storage zone layouts 1504 | -10/Materials | Learned location of Recycling (-7) 1530 | -10/Materials | Learned Storage trap positions 1686 | -10/Materials | Entered Mines 1687 | -10/Mines | Identified exit to Materials 1767 | -10/Mines | A weapon hastily lodged in a ceiling crevice suddenly fell to the ground 1908 | -10/Mines | Learned location of Mines (-9) 2217 | -10/Mines | Core integrity fell below 50% 2242 | -10/Mines | Discovered exit to Subcaves (range 6) 2301 | -10/Mines | Entered Subcaves 2302 | -10/Subcaves | Approached by a straggling Scientist 2302 | -10/Subcaves | Identified exit to Materials 2302 | -10/Subcaves | Identified exit to Recycling 2349 | -10/Subcaves | Disturbed a concealed Subdweller 2427 | -10/Subcaves | A swath of the cavern ceiling suddenly collapsed 2597 | -10/Subcaves | Shifting Twisted Machinery released Sub. Laser 2598 | -10/Subcaves | Shifting Twisted Machinery released Sub. Machine Gun 2930 | -10/Subcaves | Build established: Scavenger-Mutant 2952 | -10/Subcaves | Visited Clippyterm 2956 | -10/Subcaves | Learned Factory garrison access intel 2986 | -10/Subcaves | Core integrity fell below 20% 3009 | -10/Subcaves | A swath of the cavern ceiling suddenly collapsed 3117 | -10/Subcaves | Destroyed by YI-LHS(R) with Subdweller Laser Last Messages --------------- anywhere. UL-XEM(c): "I think it's somewhere southeast of here" 02976_ Sub. Machine Gun shoots sparks and powers down. 02979_ Seismic Detector destroyed. 02990_ H6-ETM(R) suffers critical hit (Destroy). 02993_ Wheel destroyed. 02999_ Destroyed Scrap Shield. 03002_ H6-ETM(R) suffers critical hit (Destroy). 03002_ H6-ETM(R) destroyed. A swath of the cavern ceiling suddenly collapses. 03010_ Acquired 23 matter. 03018_ Dropped Broken Sub. Machine Gun. 03107_ Sub. Monowheel destroyed. 03111_ Ion Engine destroyed. 03112_ WV-DQ8(R) destroyed. 03116_ YI-LHS(R) affixes Scrap Shield Fragment to Scrap Shield. Map ----- +----------------------------------------------------+ | ????????????????????????????????????????????????? | | ????????????????????????????????????????????????? | | ????????????????????????????????????????????????? | | ????????????????????????????????????????????????? | | ???????#######??????????????????????????????????? | | ???????#"""""#??????????????????????????????????? | | ???????#""X""#??????????????????????????????????? | | ???????#" "#??????????????????????????????????? | | ####???### ###??????????????????????????????????? | | ##???## ###??????????????????????????????????? | | #??## ####???????????????????????????????? | | #?????# ## ####????????????????????????????? | | ####### #?####???????????????????????? | | # ## ##?#""##??????????????????????? | | "#####"""###????????????????????? | | ###"#"#"""#""#???#????????????????? | | ## ####[# # ### ###????????????????????? | | # ##### ##?#="#"#"##"#####???????????????????? | | ## #??# ## # ########?# #???????????????????? | | ?# ?# ["##""###?## ##??????????????????? | | ?### # # ""## ###" ##?????????????????? | | ????# ##### ### # # """"#?????????????????? | | ????? ####?? ## "" ##????????????????? | | ????? #??? ####" ""##?????????????????? | | ???? ##??# ???## ##???????#??????????? | | ?????? #???# " "??#@ "##?????????????????? | | ???????#??# """#?## R%"#?????????????????? | | ????????? "##??##%[ ##????????????????? | | ????????# #### ######&%%"#????????????????? | | ????????## #???### """" #????????????????? | | ?????????# ##?????#?# " " ##????????????????? | | ?????????##????#????## ###?????????????????? | | ????????????????????### ##???????????????????? | | ??????????????????????## #?????????#??????????? | | ???????????????????????# ????????#??????????? | | ???????????????????????### ??????????????????? | | ????????????????????????### ?????????????????? | | ???????????????????????????# #???????????????? | | ???????????????????????????? ##??????????????? | | ?????????????????????????????""##???????????????? | | ?????????????????????????????"""????????????????? | | ??????????????????????????????"""???????????????? | | ????????????????????????????????????????????????? | | ????????????????????????????????????????????????? | | ????????????????????????????????????????????????? | | ????????????????????????????????????????????????? | | ????????????????????????????????????????????????? | | ????????????????????????????????????????????????? | | ????????????????????????????????????????????????? | | ????????????????????????????????????????????????? | +----------------------------------------------------+ Best States ------------- Heat Dissipation 25 Energy Generation 14 Energy Capacity 250 Matter Stores 300 Matter Capacity 300 Sight Range 16 Terrain Scan Range 16 Terrain Scan Density 10 Evasion (%) 44 Recoil Reduction 2 Item Schematics ----------------- None Robot Schematics ------------------ None Fabricated ------------ Nothing Repaired ---------- Nothing Studied --------- None Alien Tech Used ----------------- None Achievements -------------- You Again Challenges ------------ None Game ------ Seed GravityShockboltTrident Manual? 0 Play Time 00:18:02 Cumulative 593.5 hours Start 2025.12.13 @ 20:48:08 End 2025.12.13 @ 21:04:45 Sessions 1 Manual Loads 0 Difficulty Rogue Special Mode None Game No. 304 Rogue 241 Adventurer 63 Explorer 0 Win Type - Total 11 Types 9/0/0/1/0/0/1/0/0/0 Lore% 92 Gallery% 84 Achievement% 57 Wizard Run 0 Options --------- Layout 1 ASCII 0 Keyboard 1 Movement Numpad Keybinds 0 Fullscreen 2 Font 24/Terminus Map View 50x35 Zoom Use 0% Tactical HUD 1 Map Filters NONE Filters NONE Steam 1 RUN: cb11ab14-ec0c-44bb-9d6b-bc093edf612a